bitfinex/quotes_ETHUSD_20250720
["timestamp","ask_amount","ask_price","bid_price","bid_amount"]
[1753022336440,1e-08,3750.4,3750.3,10.22035335]
[1753022336616,1e-08,3750.4,3750.3,11.00585335]
[1753022343365,1e-08,3750.4,3750.3,2.66645335]
[1753022343567,0.44380001,3750.4,3750.3,4.091]
[1753022343866,0.44380001,3750.4,3750.2,6.75749517]
[1753022344163,0.44380001,3750.4,3750.3,3.0]
[1753022344367,0.4438,3750.3,3750.2,4.091]
[1753022344518,0.4438,3750.3,3750.2,7.091]
[1753022344951,0.4438,3750.3,3750.2,3.0]
[1753022345261,1e-08,3750.4,3750.3,2.66645335]
[1753022345414,1e-08,3750.4,3750.2,5.66650195]
[1753022346131,1e-08,3750.4,3750.2,3.0]
[1753022346653,0.44380001,3750.4,3750.2,5.66651803]
[1753022346851,0.44380001,3750.4,3750.2,3.0]
[1753022347057,0.4438,3750.3,3750.2,3.0]
[1753022347255,0.4438,3750.3,3750.0,3.0]
[1753022347443,0.4438,3750.2,3750.0,3.0]
[1753022347765,0.4438,3750.2,3750.0,5.66666408]
[1753022348850,1e-08,3750.4,3750.0,3.0]
[1753022349052,1e-08,3750.4,3750.1,3.0]
[1753022349260,1e-08,3750.4,3750.1,7.091]
[1753022349557,0.4438,3750.3,3750.1,7.091]
[1753022350154,0.4438,3750.3,3749.8,2.80060434]
[1753022350155,0.4438,3750.2,3749.8,0.1338]
[1753022350353,0.47051099,3750.1,3749.8,0.001]
[1753022350569,3.13712663,3750.1,3749.8,0.001]
[1753022350774,0.7968,3750.0,3749.8,0.001]
[1753022351273,0.4438,3749.9,3749.8,0.001]
[1753022353796,0.7968,3750.0,3749.8,0.001]
[1753022353944,0.4438,3749.9,3749.8,0.001]
[1753022354591,3.11053777,3749.9,3749.8,0.001]
[1753022354884,0.4438,3749.9,3749.8,0.001]
[1753022356325,0.7968,3750.0,3749.8,0.001]
[1753022356478,0.4438,3749.9,3749.8,0.001]
[1753022357525,0.7968,3750.0,3749.8,0.001]
[1753022357711,3.46346952,3750.0,3749.8,0.001]
[1753022357927,3.11053777,3749.9,3749.8,0.001]
[1753022358075,3.13724876,3749.9,3749.8,0.001]
[1753022358443,0.02671099,3749.9,3749.8,3.48960889]
[1753022358595,2.66629952,3750.6,3750.0,2.66664105]
[1753022358780,2.66629952,3750.6,3749.9,3.0]
[1753022358781,0.4438,3750.6,3750.2,2.66650978]
[1753022359127,0.4438,3750.6,3750.2,2.66652445]
[1753022359750,0.4438,3750.6,3750.3,2.66645335]
[1753022360697,0.1328,3750.7,3750.3,2.66645335]
[1753022360898,4.2238,3750.7,3750.3,3.11915335]
[1753022361099,0.1328,3750.7,3750.3,3.11915335]
[1753022361318,4.2238,3750.7,3750.3,3.11915335]
[1753022361510,0.1328,3750.7,3750.3,3.11915335]
[1753022363045,0.02671099,3750.6,3750.1,0.1328]
[1753022363211,0.1328,3750.1,3749.8,0.001]
[1753022363391,0.4438,3750.0,3749.8,0.001]
[1753022363820,0.4438,3749.9,3749.8,0.001]
[1753022364715,2.79940209,3750.1,3749.8,0.001]
[1753022364933,2.79941296,3750.1,3749.8,0.001]
[1753022365097,0.4438,3750.0,3749.8,0.001]
[1753022365646,3.11049488,3750.0,3749.8,0.001]
[1753022365943,0.4438,3749.9,3749.8,0.001]
[1753022366659,4.6008593,3749.9,3749.8,0.001]
[1753022366863,5.1508593,3749.9,3749.8,0.001]
[1753022368444,8.6908593,3749.9,3749.8,0.001]
[1753022369049,8.6918593,3749.9,3749.8,0.001]
[1753022369764,4.6008593,3749.9,3749.8,0.001]
[1753022369950,8.6918593,3749.9,3749.8,0.001]
[1753022370247,6.02512153,3749.9,3749.8,0.001]
[1753022370474,8.6918593,3749.9,3749.8,0.001]
[1753022371778,1.93412153,3749.9,3749.8,0.001]
[1753022371924,4.091,3749.9,3749.8,0.001]
[1753022372120,4.2238,3749.9,3749.8,0.001]
[1753022373263,7.35074876,3749.9,3749.8,0.001]
[1753022373429,7.32403777,3749.9,3749.8,0.001]
[1753022373750,9.16335113,3749.9,3749.8,0.001]
[1753022374765,9.71335113,3749.9,3749.8,0.001]
[1753022375668,9.71335113,3749.9,3749.8,1e-08]
[1753022375864,3.21695114,3749.6,3749.5,1e-08]
[1753022376048,12.24048189,3749.6,3749.5,1e-08]
[1753022376252,12.2137709,3749.6,3749.5,1e-08]
[1753022376472,12.6472709,3749.6,3749.5,1e-08]
[1753022384095,8.5562709,3749.6,3749.5,1e-08]
[1753022384259,12.6472709,3749.6,3749.5,1e-08]
[1753022384675,8.5562709,3749.6,3749.5,1e-08]
[1753022385076,12.6472709,3749.6,3749.5,1e-08]
[1753022386872,12.6482709,3749.6,3749.5,1e-08]
[1753022387268,12.03292706,3749.6,3749.5,1e-08]
[1753022387505,7.5727709,3749.6,3749.5,1e-08]
[1753022387680,2.66691786,3749.7,3749.5,0.42850001]
[1753022387882,0.7595,3750.2,3749.5,0.42850001]
[1753022388193,0.1328,3749.6,3749.5,0.42850001]
[1753022388695,4.091,3749.6,3749.5,0.42850001]
[1753022388992,4.091,3749.7,3749.5,0.42850001]
[1753022389295,4.091,3749.7,3749.5,1e-08]
[1753022389601,2.79975114,3749.6,3749.5,1e-08]
[1753022390095,2.82646213,3749.6,3749.5,1e-08]
[1753022390299,2.79975114,3749.6,3749.5,1e-08]
[1753022390696,2.82646213,3749.6,3749.5,1e-08]
[1753022390869,4.2157192,3749.6,3749.5,1e-08]
[1753022392098,4.7657192,3749.6,3749.5,1e-08]
[1753022395111,5.5350192,3749.6,3749.5,1e-08]
[1753022395674,9.1925192,3749.6,3749.5,1e-08]
[1753022395891,5.07480821,3749.6,3749.5,1e-08]
[1753022396206,9.1925192,3749.6,3749.5,1e-08]
[1753022396501,9.59930821,3749.6,3749.5,1e-08]
[1753022396702,5.50830821,3749.6,3749.5,1e-08]
[1753022396904,9.6260192,3749.6,3749.5,1e-08]
[1753022397083,9.59930821,3749.6,3749.5,1e-08]
[1753022398203,8.39650821,3749.6,3749.5,1e-08]
[1753022398408,3.34975114,3749.6,3749.5,1e-08]
[1753022398610,7.44075114,3749.6,3749.5,1e-08]
[1753022400676,4.7738,3749.6,3749.5,1e-08]
[1753022401007,4.2238,3749.6,3749.5,0.45440001]
[1753022401394,0.1328,3749.6,3749.5,0.45440001]
[1753022401577,4.2238,3749.6,3749.5,0.45440001]
[1753022402187,4.2238,3749.6,3749.5,1e-08]
[1753022402514,7.33984213,3749.6,3749.5,1e-08]
[1753022402692,8.31603114,3749.6,3749.5,1e-08]
[1753022403090,0.1328,3749.6,3749.5,0.80590001]
[1753022403292,4.2228,3749.6,3749.5,1.26030001]
[1753022403799,4.2228,3749.6,3749.5,4.26030001]
[1753022403999,4.2228,3749.6,3749.5,6.92732227]
[1753022404218,0.1328,3749.6,3749.5,1.26030001]
[1753022404420,4.2228,3749.6,3749.5,1.26030001]
[1753022404924,8.18213114,3749.6,3749.5,1e-08]
[1753022407301,7.73323114,3749.6,3749.5,1e-08]
[1753022407931,8.18613114,3749.6,3749.5,1e-08]
[1753022408228,8.18513114,3749.6,3749.5,1e-08]
[1753022408426,3.63923114,3749.6,3749.5,1e-08]
[1753022408722,4.093,3749.6,3749.5,0.45440001]
[1753022409088,6.75995114,3749.6,3749.5,1e-08]
[1753022409438,7.76285114,3749.6,3749.5,1e-08]
[1753022410111,7.30995114,3749.6,3749.5,1e-08]
[1753022410552,8.35291724,3749.6,3749.5,1e-08]
[1753022410707,7.30995114,3749.6,3749.5,1e-08]
[1753022411089,4.092,3749.6,3749.5,1e-08]
[1753022411524,4.11871099,3749.6,3749.5,1e-08]
[1753022411940,6.75895114,3749.6,3749.5,1e-08]
[1753022412243,7.30895114,3749.6,3749.5,1e-08]
[1753022413153,8.35182522,3749.6,3749.5,1e-08]
[1753022415129,2.66695114,3749.6,3749.5,1e-08]
[1753022415435,6.76195114,3749.6,3749.5,1e-08]
[1753022416614,6.76395114,3749.6,3749.5,1e-08]
[1753022417137,2.66895114,3749.6,3749.5,1e-08]
[1753022417541,4.096,3749.6,3749.5,1e-08]
[1753022418243,6.76295114,3749.6,3749.5,1e-08]
[1753022418601,2.66895114,3749.6,3749.5,1e-08]
[1753022418944,6.76195114,3749.6,3749.5,1e-08]
[1753022419116,4.095,3749.6,3749.5,1e-08]
[1753022419329,0.002,3749.6,3749.5,0.45440001]
[1753022419537,4.094,3749.6,3749.5,0.45440001]
[1753022422047,4.092,3749.6,3749.5,0.45440001]
[1753022422459,0.002,3749.6,3749.5,3.7757688]
[1753022423170,0.002,3749.6,3749.5,4.5445688]
[1753022423328,0.002,3749.6,3749.5,3.90160001]
[1753022423526,0.002,3749.6,3749.5,4.22320001]
[1753022424565,0.002,3749.6,3749.5,6.89022227]
[1753022425050,0.002,3749.6,3749.5,7.02302227]
[1753022426053,0.002,3749.6,3749.5,4.35600001]
[1753022427031,0.002,3749.6,3749.5,7.02302227]
[1753022427824,0.002,3749.6,3749.5,4.35600001]
[1753022428026,0.002,3749.6,3749.5,7.02302227]
[1753022430334,0.002,3749.6,3749.5,4.35600001]
[1753022430764,0.002,3749.6,3749.5,7.02302227]
[1753022431550,0.002,3749.6,3749.5,6.56862227]
[1753022431866,0.002,3749.6,3749.5,7.94500044]
[1753022438273,0.002,3749.6,3749.5,12.03500044]
[1753022438770,0.002,3749.6,3749.5,16.75500044]
[1753022445488,0.002,3749.6,3749.5,9.54517818]
[1753022445693,0.002,3749.6,3749.5,16.30120044]
[1753022445892,0.002,3749.6,3749.5,4.85280001]
[1753022446064,0.4757,3749.6,3749.5,4.72000001]
[1753022446394,3.14265114,3749.6,3749.5,1e-08]
[1753022454506,7.23265114,3749.6,3749.5,1e-08]
[1753022455392,8.31222778,3749.6,3749.5,1e-08]
[1753022455601,4.22222778,3749.6,3749.5,1e-08]
[1753022455895,8.31122778,3749.6,3749.5,1e-08]
[1753022456090,0.002,3749.6,3749.5,3.11982227]
[1753022456294,0.002,3749.6,3749.5,6.93952227]
[1753022461853,8.54545114,3749.6,3749.5,1e-08]
[1753022462030,6.21752027,3748.8,3748.5,0.001]
[1753022462227,2.66780493,3748.4,3748.3,0.001]
[1753022462424,7.06451592,3748.4,3748.3,0.001]
[1753022462746,8.2378507,3748.4,3748.3,0.001]
[1753022463061,8.2378507,3748.4,3746.8,0.001]
[1753022463062,4.03823202,3747.8,3746.8,0.001]
[1753022463361,8.13323202,3747.8,3746.8,0.001]
[1753022463520,8.57493202,3747.8,3746.8,0.001]
[1753022464341,11.57493202,3747.8,3746.8,0.001]
[1753022464539,2.66865926,3747.2,3746.8,0.001]
[1753022464758,11.64221253,3747.2,3746.8,0.001]
[1753022464954,4.48035926,3747.2,3746.8,0.001]
[1753022465178,8.60907025,3747.2,3746.8,0.001]
[1753022465469,8.58235926,3747.2,3746.8,0.001]
[1753022465747,9.34070503,3747.2,3746.8,0.001]
[1753022466372,5.23870503,3747.2,3746.8,0.001]
[1753022466576,9.34570503,3747.2,3746.8,0.001]
[1753022468161,12.34570503,3747.2,3746.8,0.001]
[1753022469758,5.23870503,3747.2,3746.8,0.001]
[1753022469935,5.26541602,3747.2,3746.8,0.001]
[1753022470136,1.37,3747.2,3746.8,0.001]
[1753022470443,2.66851683,3747.4,3746.8,0.001]
[1753022470634,4.107,3747.3,3746.8,2.66992845]
[1753022470833,4.107,3747.3,3746.8,0.001]
[1753022471044,2.66852451,3747.4,3746.8,0.001]
[1753022471045,4.108,3747.2,3746.8,0.001]
[1753022471774,4.109,3747.2,3746.8,0.001]
[1753022472458,0.55,3747.6,3746.8,0.001]
[1753022472629,4.108,3747.5,3746.8,0.001]
[1753022472832,6.8377,3747.9,3747.1,0.4637]
[1753022473026,0.1328,3747.4,3747.2,1.208]
[1753022473230,0.1328,3747.7,3747.4,2.66848745]
[1753022473427,0.1328,3747.7,3747.5,0.4437]
[1753022473627,4.109,3747.6,3747.5,0.4437]
[1753022475547,4.109,3747.6,3747.4,2.66849998]
[1753022475883,4.109,3747.6,3747.3,2.66857864]
[1753022476024,4.109,3747.6,3747.2,1.208]
[1753022476025,4.109,3747.6,3747.2,3.87663842]
[1753022476372,4.107,3747.5,3747.3,2.66857062]
[1753022476878,2.66865926,3747.2,3747.1,0.02]
[1753022477059,6.80237025,3747.2,3747.1,0.02]
[1753022477377,6.78665926,3747.2,3747.1,0.02]
[1753022477583,7.22835926,3747.2,3747.1,0.02]
[1753022477865,3.11035926,3747.2,3747.1,0.02]
[1753022478049,7.87536167,3747.2,3747.1,0.02]
[1753022478372,7.84865068,3747.2,3747.1,0.02]
[1753022478679,8.39865068,3747.2,3747.1,0.02]
[1753022480760,9.21885068,3747.2,3747.1,0.02]
[1753022484448,5.10085068,3747.2,3747.1,0.02]
[1753022484646,9.21585068,3747.2,3747.1,0.02]
[1753022485275,9.21485068,3747.2,3747.1,0.02]
[1753022486041,5.10085068,3747.2,3747.1,0.02]
[1753022486246,9.24156167,3747.2,3747.1,0.02]
[1753022486476,9.21485068,3747.2,3747.1,0.02]
[1753022487244,5.10085068,3747.2,3747.1,0.02]
[1753022487458,9.24056167,3747.2,3747.1,0.02]
[1753022487686,9.21385068,3747.2,3747.1,0.02]
[1753022488045,4.65915068,3747.2,3747.1,0.02]
[1753022488251,8.79786167,3747.2,3747.1,0.02]
[1753022488593,9.20835068,3747.2,3747.1,0.02]
[1753022489776,5.09635068,3747.2,3747.1,0.02]
[1753022489979,5.12306167,3747.2,3747.1,0.02]
[1753022490482,9.23306167,3747.2,3747.1,0.02]
[1753022490776,5.09635068,3747.2,3747.1,0.02]
[1753022490982,9.23206167,3747.2,3747.1,0.02]
[1753022491203,5.09635068,3747.2,3747.1,0.02]
[1753022491350,4.65915068,3747.2,3747.1,0.02]
[1753022491552,8.76815068,3747.2,3747.1,0.02]
[1753022492288,9.20535068,3747.2,3747.1,0.02]
[1753022492960,7.94795068,3747.2,3747.1,0.02]
[1753022493147,3.83895068,3747.2,3747.1,0.02]
[1753022493349,8.38315068,3747.2,3747.1,0.02]
[1753022495605,4.27615068,3747.2,3747.1,0.02]
[1753022495806,8.40886167,3747.2,3747.1,0.02]
[1753022496103,3.83895068,3747.2,3747.1,0.02]
[1753022496400,2.66865926,3747.2,3747.1,0.02]
[1753022496590,6.77465926,3747.2,3747.1,0.02]
[1753022497792,2.66865926,3747.2,3747.1,0.02]
[1753022498103,6.77465926,3747.2,3747.1,0.02]
[1753022498267,2.66840833,3747.6,3747.1,0.02]
[1753022498268,0.55,3747.8,3747.1,0.4553]
[1753022498464,2.66835852,3747.7,3747.1,0.4553]
[1753022498668,0.1328,3747.3,3747.1,0.4553]
[1753022498905,0.781,3748.2,3747.2,3.44295926]
[1753022499066,0.781,3748.2,3747.2,3.44295912]
[1753022499067,0.1328,3747.7,3747.2,3.44295912]
[1753022499412,4.106,3747.6,3747.3,0.4353]
[1753022499603,4.106,3747.6,3747.2,4.06952189]
[1753022499805,4.106,3747.6,3747.4,0.4353]
[1753022500293,0.1328,3747.7,3747.5,0.4353]
[1753022500493,0.1328,3747.7,3747.6,2.66837442]
[1753022500736,4.2388,3747.7,3747.6,3.10367442]
[1753022500895,4.2388,3747.7,3747.6,4.45519223]
[1753022500896,4.106,3747.7,3747.6,4.45519223]
[1753022501405,0.1328,3748.0,3747.8,2.66822599]
[1753022501593,4.105,3747.9,3747.6,1.35151781]
[1753022501798,4.105,3747.9,3747.7,0.4353]
[1753022502115,4.105,3747.9,3747.8,0.4353]
[1753022502265,4.105,3747.9,3747.6,0.7743]
[1753022502471,4.105,3747.9,3747.6,1.2096]
[1753022503073,4.13171099,3747.9,3747.6,0.7743]
[1753022503271,0.1328,3747.7,3747.6,0.7743]
[1753022503785,0.1328,3747.7,3747.4,0.4353]
[1753022503984,4.104,3747.6,3747.3,0.7743]
[1753022504188,2.66849153,3747.5,3747.3,0.7743]
[1753022504386,0.1328,3747.4,3747.3,0.7743]
[1753022505222,2.80131683,3747.4,3747.3,0.7743]
[1753022505677,2.80131683,3747.4,3747.1,0.021]
[1753022506008,4.103,3747.3,3747.1,0.4563]
[1753022506305,0.1328,3747.4,3747.2,0.4353]
[1753022506515,4.103,3747.3,3747.2,0.4353]
[1753022506871,4.103,3747.3,3747.1,0.021]
[1753022507074,2.66865926,3747.2,3747.1,0.021]
[1753022507706,6.77164683,3747.3,3747.1,0.021]
[1753022508275,2.66865926,3747.2,3747.1,0.021]
[1753022508793,4.65688286,3747.2,3747.1,0.021]
[1753022509788,4.21968286,3747.2,3747.1,0.021]
[1753022511201,2.66849088,3747.5,3747.2,0.7606]
[1753022511406,4.2338,3747.4,3747.3,0.4353]
[1753022511608,4.2338,3747.4,3747.2,0.7606]
[1753022511790,4.2338,3747.4,3747.3,0.4353]
[1753022512683,6.90231683,3747.4,3747.3,0.4353]
[1753022513201,2.66858805,3747.3,3747.2,0.7606]
[1753022514115,6.90234616,3747.4,3747.2,0.7606]
[1753022514713,4.2338,3747.4,3747.2,1.1959]
[1753022515897,6.90231876,3747.4,3747.2,1.1959]
[1753022516514,4.098,3747.3,3747.1,0.021]
[1753022516914,4.098,3747.3,3747.1,0.4563]
[1753022517123,4.098,3747.3,3747.2,0.4353]
[1753022518524,4.096,3747.3,3747.2,0.4353]
[1753022520200,4.096,3747.3,3747.1,0.021]
[1753022520504,6.76458805,3747.3,3747.1,0.021]
[1753022520761,4.096,3747.3,3747.1,0.021]
[1753022521594,4.096,3747.3,3747.1,0.4915]
[1753022522834,4.096,3747.3,3747.1,0.021]
[1753022522996,4.096,3747.3,3747.2,0.4705]
[1753022523199,0.1328,3747.4,3747.3,0.8224]
[1753022523515,4.094,3747.5,3747.3,3.4909293]
[1753022523689,4.094,3747.5,3747.4,3.13901683]
[1753022523893,4.094,3747.5,3747.4,3.27181683]
[1753022524753,4.096,3747.5,3747.4,3.27181683]
[1753022525410,0.002,3747.5,3747.4,3.27181683]
[1753022530050,0.002,3747.5,3747.4,2.80131683]
[1753022530251,0.002,3747.5,3747.4,3.27181683]
[1753022530673,0.002,3747.5,3747.4,4.72220415]
[1753022531617,0.002,3747.5,3747.3,0.8224]
[1753022531813,0.002,3747.5,3747.2,3.0]
[1753022532019,0.002,3747.5,3747.1,0.1538]
[1753022532223,0.5712,3747.5,3747.1,0.021]
[1753022532439,3.26638074,3747.5,3747.1,0.021]
[1753022532634,0.16151099,3747.5,3747.1,0.021]
[1753022532842,2.66863285,3747.3,3747.1,0.021]
[1753022533055,6.78934384,3747.3,3747.1,0.021]
[1753022533258,6.76263285,3747.3,3747.1,0.021]
[1753022534019,2.69537025,3747.2,3747.1,0.021]
[1753022534256,2.82817025,3747.2,3747.1,0.021]
[1753022534759,0.1328,3747.2,3747.1,0.021]
[1753022534955,2.80145926,3747.2,3747.1,0.021]
[1753022535731,0.1328,3747.2,3747.1,0.021]
[1753022538546,4.094,3747.2,3747.1,0.4915]
[1753022538962,4.094,3747.2,3747.1,3.16023048]
[1753022543250,4.094,3747.2,3747.1,0.021]
[1753022543456,4.77312122,3747.2,3747.1,0.021]
[1753022543655,8.81998048,3747.2,3747.1,0.021]
[1753022547283,6.15132122,3747.2,3747.1,0.021]
[1753022547586,8.81998048,3747.2,3747.1,0.021]
[1753022548383,4.90592122,3747.2,3747.1,0.021]
[1753022548565,4.2268,3747.2,3747.1,0.021]
[1753022549081,6.89545926,3747.2,3747.1,0.021]
[1753022549287,4.2268,3747.2,3747.1,0.021]
[1753022550183,4.6957,3747.2,3747.1,0.021]
[1753022550482,7.39107025,3747.2,3747.1,0.021]
[1753022550650,8.44657994,3747.2,3747.1,0.021]
[1753022552649,9.25897994,3747.2,3747.1,0.021]
[1753022553261,5.16497994,3747.2,3747.1,0.021]
[1753022553463,9.25897994,3747.2,3747.1,0.021]
[1753022555379,0.1328,3747.2,3747.1,0.021]
[1753022555583,6.89545926,3747.2,3747.1,0.021]
[1753022555957,0.1328,3747.2,3747.1,0.021]
[1753022556174,4.2268,3747.2,3747.1,0.021]
[1753022557898,4.6957,3747.2,3747.1,0.021]
[1753022558095,7.36435926,3747.2,3747.1,0.021]
[1753022558590,4.6957,3747.2,3747.1,0.021]
[1753022558797,4.72241099,3747.2,3747.1,0.021]
[1753022559295,0.62841099,3747.2,3747.1,0.021]
[1753022559498,4.72241099,3747.2,3747.1,0.021]
[1753022560810,7.39107025,3747.2,3747.1,0.021]
[1753022560995,7.36435926,3747.2,3747.1,0.021]
[1753022563108,3.27035926,3747.2,3747.1,0.021]
[1753022563323,6.89445926,3747.2,3747.1,0.021]
[1753022563470,5.70075889,3747.2,3747.1,0.021]
[1753022563676,5.23185889,3747.2,3747.1,0.021]
[1753022563907,3.80751815,3747.2,3747.1,0.021]
[1753022564113,6.89445926,3747.2,3747.1,0.021]
[1753022564603,0.1328,3747.2,3747.1,0.021]
[1753022564805,6.89445926,3747.2,3747.1,0.021]
[1753022565009,6.89445926,3747.2,3747.1,0.4944]
[1753022565178,4.2258,3747.2,3747.1,0.4944]
[1753022565508,6.89445926,3747.2,3747.1,0.021]
[1753022565806,4.2258,3747.2,3747.1,0.021]
[1753022566817,2.80145926,3747.2,3747.1,0.021]
[1753022567006,6.89445926,3747.2,3747.1,0.021]
[1753022567677,8.3198569,3747.2,3747.1,0.021]
[1753022568589,9.1115569,3747.2,3747.1,0.021]
[1753022569113,9.6615569,3747.2,3747.1,0.021]
[1753022572709,5.5685569,3747.2,3747.1,0.021]
[1753022572899,9.6615569,3747.2,3747.1,0.021]
[1753022574136,5.5685569,3747.2,3747.1,0.021]
[1753022574341,9.6615569,3747.2,3747.1,0.021]
[1753022576971,5.5685569,3747.2,3747.1,0.021]
[1753022577119,8.4009569,3747.2,3747.1,0.021]
[1753022577324,6.89445926,3747.2,3747.1,0.021]
[1753022577632,4.2258,3747.2,3747.1,0.021]
[1753022577839,6.92117025,3747.2,3747.1,0.021]
[1753022578008,6.89445926,3747.2,3747.1,0.021]
[1753022578442,2.80145926,3747.2,3747.1,0.021]
[1753022578650,6.89445926,3747.2,3747.1,0.021]
[1753022578958,4.2258,3747.2,3747.1,0.021]
[1753022581737,6.89445926,3747.2,3747.1,0.021]
[1753022581942,12.90564841,3747.2,3747.1,0.021]
[1753022583516,7.04777293,3746.9,3746.8,1e-08]
[1753022583726,11.27257293,3746.9,3746.8,1e-08]
[1753022584153,11.72787293,3746.9,3746.8,1e-08]
[1753022584461,13.1919056,3746.9,3746.8,1e-08]
[1753022586827,10.52303267,3746.9,3746.3,1e-08]
[1753022587028,10.52303267,3746.9,3745.6,1e-08]
[1753022587029,4.04862795,3745.7,3745.6,1e-08]
[1753022587256,15.28204898,3745.7,3745.6,1e-08]
[1753022587456,15.71063799,3745.7,3745.6,1e-08]
[1753022589254,8.13904929,3745.7,3745.6,1e-08]
[1753022589442,12.23104929,3745.7,3745.6,1e-08]
[1753022590455,8.13904929,3745.7,3745.6,1e-08]
[1753022590660,12.23104929,3745.7,3745.6,1e-08]
[1753022592055,12.23204929,3745.7,3745.6,1e-08]
[1753022593229,8.13904929,3745.7,3745.6,1e-08]
[1753022593425,12.23204929,3745.7,3745.6,1e-08]
[1753022594167,8.13904929,3745.7,3745.6,1e-08]
[1753022594366,12.23204929,3745.7,3745.6,1e-08]
[1753022594761,7.68374929,3745.7,3745.6,1e-08]
[1753022594954,11.77674929,3745.7,3745.6,1e-08]
[1753022595151,4.68374929,3745.7,3745.6,1e-08]
[1753022595365,11.77674929,3745.7,3745.6,1e-08]
[1753022595940,12.23204929,3745.7,3745.6,1e-08]
[1753022597775,10.43454929,3745.7,3745.6,1e-08]
[1753022598072,6.34154929,3745.7,3745.6,1e-08]
[1753022598240,10.43454929,3745.7,3745.6,1e-08]
[1753022598441,10.98454929,3745.7,3745.6,1e-08]
[1753022598840,10.43454929,3745.7,3745.6,1e-08]
[1753022599041,10.98454929,3745.7,3745.6,1e-08]
[1753022599547,7.98454929,3745.7,3745.6,1e-08]
[1753022601086,3.89154929,3745.7,3745.6,1e-08]
[1753022601253,7.98454929,3745.7,3745.6,1e-08]
[1753022603168,8.92712129,3745.7,3745.6,1e-08]
[1753022603585,4.83412129,3745.7,3745.6,1e-08]
[1753022603770,8.92712129,3745.7,3745.6,1e-08]
[1753022603971,8.92712129,3745.7,3745.6,0.44470001]
[1753022604374,8.92712129,3745.7,3745.6,1e-08]
[1753022606200,4.83412129,3745.7,3745.6,1e-08]
[1753022606365,8.95383228,3745.7,3745.6,1e-08]
[1753022606571,10.19432129,3745.7,3745.6,1e-08]
[1753022608980,4.28412129,3745.7,3745.6,1e-08]
[1753022609302,8.92712129,3745.7,3745.6,1e-08]
[1753022609468,4.28412129,3745.7,3745.6,1e-08]
[1753022609668,3.61229995,3745.7,3745.6,1e-08]
[1753022609868,7.70529995,3745.7,3745.6,0.43020001]
[1753022610323,8.25529995,3745.7,3745.6,0.43020001]
[1753022610674,8.25729995,3745.7,3745.6,0.43020001]
[1753022612194,0.944572,3745.7,3745.6,0.43020001]
[1753022612399,7.70629995,3745.7,3745.6,0.43020001]
[1753022613124,7.70629995,3745.7,3745.6,1e-08]
[1753022613293,9.29389818,3745.7,3745.6,1e-08]
[1753022614303,9.73529818,3745.7,3745.6,1e-08]
[1753022614500,9.29389818,3745.7,3745.6,1e-08]
[1753022616395,5.20189818,3745.7,3745.6,1e-08]
[1753022616597,9.32060917,3745.7,3745.6,1e-08]
[1753022616795,5.64329818,3745.7,3745.6,1e-08]
[1753022617023,9.76200917,3745.7,3745.6,1e-08]
[1753022617220,9.73529818,3745.7,3745.6,1e-08]
[1753022623144,13.50999818,3745.7,3745.6,1e-08]
[1753022624557,3.44478437,3745.2,3745.1,1e-08]
[1753022624709,14.91085151,3745.2,3745.1,1e-08]
[1753022624910,15.35225151,3745.2,3745.1,1e-08]
[1753022625103,14.91085151,3745.2,3745.1,1e-08]
[1753022625312,2.67136827,3743.4,3742.9,0.8319]
[1753022625543,6.76343963,3743.3,3743.1,0.8502]
[1753022625814,4.092,3743.2,3743.1,0.42]
[1753022626024,6.763511,3743.2,3743.1,0.42]
[1753022626459,8.16116745,3743.2,3743.1,0.42]
[1753022626765,12.85685615,3743.2,3743.1,0.42]
[1753022626922,15.85685615,3743.2,3743.1,0.42]
[1753022627122,8.28526745,3743.2,3743.1,0.42]
[1753022627338,12.37726745,3743.2,3743.1,0.42]
[1753022627534,3.446211,3743.2,3743.1,0.42]
[1753022627734,6.763511,3743.2,3743.1,0.42]
[1753022627951,7.313511,3743.2,3743.1,0.42]
[1753022628137,2.67145084,3743.3,3743.1,0.42]
[1753022628355,3.7939,3743.7,3743.1,0.42]
[1753022628667,2.67137036,3743.4,3743.1,0.42]
[1753022628970,0.20397622,3744.3,3743.3,0.8184]
[1753022629185,2.67086883,3744.1,3743.4,0.59706]
[1753022629345,6.76285953,3744.2,3743.5,0.4302]
[1753022629524,4.096,3744.1,3743.5,3.10148041]
[1753022629861,2.67058427,3744.5,3743.6,1.2486]
[1753022630067,3.46414132,3745.0,3743.7,0.4302]
[1753022630068,2.67073397,3744.3,3743.7,0.4302]
[1753022630268,4.096,3744.2,3743.7,0.4302]
[1753022630632,4.096,3744.1,3743.9,0.8184]
[1753022630852,4.096,3744.2,3744.0,0.4302]
[1753022631392,4.096,3744.2,3744.0,3.1011312]
[1753022631677,4.096,3744.2,3744.1,1.08926095]
[1753022631873,4.096,3744.3,3744.1,1.08926095]
[1753022632163,4.096,3744.3,3743.4,0.16686]
[1753022632164,4.096,3744.3,3744.2,1.2486]
[1753022632371,4.095,3744.4,3744.2,1.2486]
[1753022632531,6.76572617,3744.3,3744.2,0.8184]
[1753022633780,2.67086883,3744.1,3744.0,0.4302]
[1753022633945,2.67101151,3743.9,3743.8,0.8184]
[1753022634276,6.76601151,3743.9,3743.8,1.2486]
[1753022634570,4.095,3743.9,3743.8,1.2486]
[1753022635435,4.2278,3743.9,3743.8,1.2486]
[1753022636973,0.1328,3743.9,3743.8,1.2486]
[1753022637288,4.095,3744.0,3743.8,1.64068804]
[1753022637461,4.095,3744.0,3743.9,0.4302]